Cogmind - Beta 12 @@@ ROGUE MODE // 2024.01.07 @ 16:06:13 Player: Dosh Result: Destroyed by Combat Programmer with EMDS Performance ------------- Evolutions (9) 4500 Regions Visited (25) 5000 Robots Destroyed (386) 1930 Value Destroyed (19550) 19550 Prototype IDs (50) 1000 Alien Tech Used (0) 0 Bonus (11346) 11346 TOTAL SCORE: 43326 Bonus ------- High Alert Combat Kills 4583 Follower Combat Kills 4109 Entered Garrisons 200 Network Hubs Disabled 400 Aligned with FarCom 300 Destroyed Z-Imprinter 1000 Triggered Deep Caves Wall 500 Exposed GOLEM Chamber 500 A7 Reached Mainframe 300 Friendly Fire -546 Cogmind --------- Core Integrity 0/1600 Matter 52/300 Energy 98/100 System Corruption 21% Temperature Cool (0) Movement Core (50) Location -1/Command Parts ------- > --- POWER (3) -------- (None) > --- PROPULSION (6) --- (None) > --- UTILITY (13) ----- (None) > --- WEAPON (3) ------- (None) > --- INVENTORY (5) ---- Advanced Heat Sink Structural Scanner Improved Particle Charger Improved Shock Absorption System Improved System Shield Peak State ------------ > --- POWER ------------ Assembled Flux Generator Improved Quantum Reactor > --- PROPULSION ------- Improved Heavy Siege Treads Biometal Heavy Treads Biometal Heavy Treads > --- UTILITY ---------- Assembled Nanovents Huge Storage Unit Assembled Biocell Array Spectral Analyzer Assembled Combat Suite Improved Transmission Jammer Advanced Cloaking Device Advanced Force Field Improved Hacking Suite Improved Hacking Suite Improved Hacking Suite GOLEM Unit > --- WEAPON ----------- Assembled Focal Cannon Assembled Focal Cannon Assembled Focal Cannon > --- INVENTORY -------- Reinforced Quantum Reactor Centrium Heavy Treads High-density Centrium Leg Advanced Heat Sink Zionite Biocell Superbattery Structural Scanner Weapon Mount Improved Particle Charger Centrium Medium Armor Plating Improved Shock Absorption System Advanced Force Field Improved System Shield Long-range Tractor Beam Mini Drone Bay GOLEM Unit 5H-AD0's Sniper Rifle Gamma Bomb Array Smartbomb Launcher Micro-nuke Launcher Point Singularity Launcher Field Lobotomy Kit [Rating: 215] Favorites ----------- Power Assembled Flux Generator Engine Improved Deuterium Engine Power Core Light Nuclear Core Reactor Assembled Flux Generator Propulsion Assembled Alloy Leg Treads Advanced Treads Leg Assembled Alloy Leg Wheel Wheel Hover Unit Zionite Glidesys I Flight Unit Improved VTOL Module Utility Core Analyzer Device GOLEM Unit Storage High-capacity Storage Unit Processor Core Analyzer Hackware Improved Hacking Suite Protection Hardened Heavy Armor Plating Weapon Assembled Focal Cannon Energy Gun Small Laser Energy Cannon Assembled Focal Cannon Ballistic Gun Light Assault Rifle Ballistic Cannon Mass Driver Launcher Rocket Launcher Special Weapon Field Lobotomy Kit Impact Weapon Heavy Flail Build | -11 -10 -10 -10 -9 -8 -8 -8 -7 -7 -7 -7 -7 -7 -6 -6 -5 -4 -4 -4 -4 -4 -3 -2 -1 -1 ------- Run | Jun Mat Min Exi Min Mat Gar Mat Fac Was Fac Low Zio Dee Pro Fac Fac Fac Ext Cet Arc Hub Res Res Acc Com Slots Evolved 18 | . . . . . 4 . . 2 . . . . . . 2 2 2 . . . . 2 2 2 . Power 2 | . . . . . . . . . . . . . . . 1 . . . . . . . 1 . . Propulsion 4 | . . . . . . . . 2 . . . . . . . . . . . . . . . 2 . Utility 11 | . . . . . 4 . . . . . . . . . 1 2 2 . . . . 1 1 . . Weapon 1 | . . . . . . . . . . . . . . . . . . . . . . 1 . . . Parts Attached 219 | 6 4 1 . 1 33 3 7 16 4 . 4 2 32 1 14 10 1 5 5 4 3 9 19 22 13 Power 15 | 1 1 . . . 3 . . 1 . . 1 . 4 . . 1 . . . . . . 2 . 1 Engine 4 | 1 1 . . . 1 . . 1 . . . . . . . . . . . . . . . . . Core 3 | . . . . . 2 . . . . . . . . . . 1 . . . . . . . . . Reactor 8 | . . . . . . . . . . . 1 . 4 . . . . . . . . . 2 . 1 Propulsion 39 | 2 . . . . 5 . 2 2 1 . 1 . 4 . 3 2 1 1 4 . . 3 1 5 2 Treads 17 | 2 . . . . . . 2 2 1 . 1 . 2 . 1 . . . . . . . . 5 1 Leg 15 | . . . . . . . . . . . . . 1 . 2 2 1 1 4 . . 2 1 . 1 Wheel 5 | . . . . . 4 . . . . . . . . . . . . . . . . 1 . . . Hover 1 | . . . . . . . . . . . . . 1 . . . . . . . . . . . . Flight 1 | . . . . . 1 . . . . . . . . . . . . . . . . . . . . Utility 96 | 1 2 . . . 11 1 3 7 . . . . 11 . 8 5 . 4 1 4 2 6 12 16 2 Device 51 | . . . . . 1 1 1 4 . . . . 5 . . 1 . 4 . 3 2 3 10 14 2 Storage 9 | 1 1 . . . 2 . . 1 . . . . 1 . 3 . . . . . . . . . . Processor 6 | . . . . . 3 . 1 1 . . . . . . . . . . . . . . . 1 . Hackware 8 | . . . . . 1 . 1 . . . . . . . 2 1 . . . . . 2 1 . . Protection 22 | . 1 . . . 4 . . 1 . . . . 5 . 3 3 . . 1 1 . 1 1 1 . Artifact . | . . . . . . . . . . . . . . . . . . . . . . . . . . Weapon 69 | 2 1 1 . 1 14 2 2 6 3 . 2 2 13 1 3 2 . . . . 1 . 4 1 8 Energy Gun 4 | 1 1 . . . . . . . . . . . 2 . . . . . . . . . . . . Energy Cannon 11 | . . . . . . 1 . 2 1 . 1 1 5 . . . . . . . . . . . . Ballistic Gun 10 | 1 . . . 1 5 . . . . . . . 1 . 1 . . . . . . . . . 1 Ballistic Cannon 12 | . . . . . 4 1 1 2 1 . 1 . 1 . 1 . . . . . . . . . . Launcher 27 | . . 1 . . 5 . 1 2 . . . . 4 1 1 2 . . . . 1 . 4 . 5 Special Weapon 4 | . . . . . . . . . 1 . . . . . . . . . . . . . . 1 2 Impact Weapon 1 | . . . . . . . . . . . . 1 . . . . . . . . . . . . . Slashing Weapon . | . . . . . . . . . . . . . . . . . . . . . . . . . . Piercing Weapon . | . . . . . . . . . . . . . . . . . . . . . . . . . . Special Melee Weapon . | . . . . . . . . . . . . . . . . . . . . . . . . . . Unidentified Prototypes 18 | . . . . . 3 . . . . . . . 10 . . . . . 1 . . . 1 2 1 Corrupted Parts 1 | . . . . . . . . . . . . . . . . . . . . . . . . 1 . System Corruption 4 | . . . . . . . . . . . . . . . . . . . . . . . . 4 . Parts Lost 55 | . 3 . . 1 2 1 2 . . . . . . . 2 3 3 3 . . 2 5 3 . 25 Power 4 | . 1 . . . . . . . . . . . . . . 1 . . . . . . . . 2 Propulsion 13 | . . . . 1 1 . 2 . . . . . . . . . 2 . . . . 2 1 . 4 Utility 23 | . . . . . 1 1 . . . . . . . . 1 2 1 2 . . 1 1 1 . 12 Weapon 15 | . 2 . . . . . . . . . . . . . 1 . . 1 . . 1 2 1 . 7 Highest Loss Streak 25 | . 1 . . 1 1 1 2 . . . . . . . 1 1 3 1 . . 1 3 1 . 25 To Critical Strikes 4 | . . . . . . . . . . . . . . . . . . 1 . . . . . . 3 Average Slot Usage (%) 85 | . 93 100 85 88 87 87 88 91 85 84 83 84 80 76 72 85 88 88 87 88 89 88 89 79 69 Engine 2 | . 13 14 14 14 7 9 9 7 7 7 3 . . . . . . . . . . . . . . Reactor 4 | . . . . . . . . . . . 3 7 7 7 5 4 5 5 5 5 5 4 8 8 6 Treads 10 | . 28 28 28 17 . . 2 30 24 23 22 23 22 23 4 . . . . . . . . 12 10 Leg 8 | . . . . . . . . . . . . . . . 15 23 20 20 19 21 21 18 16 . . Wheel 1 | . . . . . 16 18 14 . . . . . . . . . . . . . . . . . . Device 15 | . . . . . 4 9 8 10 15 15 15 15 7 7 6 13 21 26 26 26 26 26 26 24 20 Storage 9 | . 14 14 14 14 8 9 9 7 7 7 7 7 7 7 12 11 10 9 10 10 10 8 8 8 7 Processor 5 | . . . . . 10 9 9 7 7 7 7 7 7 7 6 5 5 5 5 5 5 . . 3 3 Hackware 3 | . . . . . 8 6 7 4 . . . . . . . 1 5 4 . . . 6 13 12 10 Protection 7 | . 13 14 14 14 10 9 9 6 7 7 7 7 10 7 5 10 9 4 9 9 10 7 3 . . Energy Cannon 8 | . . . . . . 8 9 6 6 7 7 6 5 7 12 10 9 9 10 9 9 13 10 11 9 Ballistic Cannon 3 | . . . . . 14 9 8 4 7 7 6 7 6 . . . . . . . . . . . . Naked Turns 35 | . . . . . . . . . . . . . . . . . . . . . . . . . 35 Heaviest Build 218 | 13 28 31 31 31 81 88 88 95 96 96 103 103 103 102 167 176 170 170 176 178 178 202 218 208 215 Greatest Support 230 | 40 40 40 40 40 20 20 44 88 114 114 115 115 115 115 92 96 108 128 137 137 117 117 120 230 225 Greatest Overweight (x) 8 | . . . . 1 8 4 4 1 1 1 1 . 1 . 4 1 2 2 2 1 1 3 2 . 3 Average Overweight (x) 1 | . . . . . 3 4 3 . . . . . . . 1 1 1 1 1 1 1 1 1 . . Largest Inventory Capacity 25 | 8 15 15 15 15 20 20 20 20 20 20 20 20 20 20 25 25 25 25 25 25 25 25 25 25 25 Average Capacity 21 | 6 12 15 15 15 19 20 20 20 20 20 20 20 20 20 20 25 25 25 25 25 25 25 25 25 23 Most Carried 25 | 2 10 11 13 13 20 20 20 20 20 20 20 18 20 20 25 25 23 22 25 25 25 25 25 25 23 Average Carried 20 | 1 6 10 12 12 16 19 19 18 19 19 19 17 19 19 19 23 22 19 24 24 24 23 23 22 20 Final Capacity 25 | 8 15 15 15 15 20 20 20 20 20 20 20 20 20 20 25 25 25 25 25 25 25 25 25 25 5 Final Carried 25 | 2 10 11 13 12 20 20 19 20 20 20 18 18 20 20 25 23 22 21 25 25 23 22 25 23 5 Class Distribution -------------------- 37% | Mutant 30% | Golem 9% | Hacker-Golem 8% | Commander-Golem Dominant Class ---------------- Mutant | -10/Materials Mutant | -10/Mines Mutant | -10/Exiles Mutant | -9/Mines Mutant | -8/Materials Commander-Mutant | -8/Garrison Mutant | -8/Materials Mutant | -7/Factory Mutant | -7/Waste Mutant | -7/Factory Mutant | -7/Lower Caves Mutant | -7/Zion Scavenger-Mutant | -7/Deep Caves Golem | -6/Proximity Caves Golem | -6/Factory Golem | -5/Factory Golem | -4/Factory Commander-Golem | -4/Extension Commander-Golem | -4/Cetus Commander-Golem | -4/Archives Golem | -4/Hub_04(d) Scavenger-Golem | -3/Research Hacker-Golem | -2/Research Hacker-Gunner | -1/Access Hacker-Golem | -1/Command Resources | -11 -10 -10 -10 -9 -8 -8 -8 -7 -7 -7 -7 -7 -7 -6 -6 -5 -4 -4 -4 -4 -4 -3 -2 -1 -1 ----------- Run | Jun Mat Min Exi Min Mat Gar Mat Fac Was Fac Low Zio Dee Pro Fac Fac Fac Ext Cet Arc Hub Res Res Acc Com Matter Collected 5147 | 260 124 9 . 81 985 123 225 422 361 176 138 . 575 60 164 200 5 45 50 30 75 71 538 317 113 Remotely 123 | . . . . . . . . . . . . . . . . . . . . . . . 123 . . Salvage Created 18518 | . 701 37 . 34 874 59 320 476 1123 123 183 . 430 381 1636 2392 698 1187 151 271 1754 1251 2828 1249 360 Parts 980 | . 43 4 . 3 64 3 18 42 12 2 5 . 14 12 103 104 36 60 4 21 112 74 156 69 19 Haulers Intercepted 4 | . . . . . 2 . . . . . . . . . . 1 . . . . . . 1 . . Recyclers Shooed 5 | . 1 . . . . . . . . . . . . . . . . . . . . 1 1 . 2 Parts Field Recycled . | . . . . . . . . . . . . . . . . . . . . . . . . . . Retrieved Matter . | . . . . . . . . . . . . . . . . . . . . . . . . . . Parts Self-Destructed 19 | . . . . . . . . . . . 5 . . 14 . . . . . . . . . . . Prevented 1 | . . . . . . . . . . . . . . 1 . . . . . . . . . . . Kills | -11 -10 -10 -10 -9 -8 -8 -8 -7 -7 -7 -7 -7 -7 -6 -6 -5 -4 -4 -4 -4 -4 -3 -2 -1 -1 ------- Run | Jun Mat Min Exi Min Mat Gar Mat Fac Was Fac Low Zio Dee Pro Fac Fac Fac Ext Cet Arc Hub Res Res Acc Com Combat Hostiles Destroyed 342 | . 12 3 . 4 25 1 8 14 5 4 4 . 37 8 37 44 10 15 2 . 24 16 50 14 5 Guns 19 | . 11 2 . . 2 . . . . . . . . . 4 . . . . . . . . . . Cannons 215 | . . . . . 9 1 5 9 4 4 4 . 3 4 28 33 10 15 2 . 24 16 27 14 3 AOE 105 | . 1 1 . 4 14 . 3 5 . . . . 32 4 5 11 . . . . . . 23 . 2 Classes Destroyed 25 | . 7 1 . . 4 1 1 1 1 1 . . 4 . 1 2 . . . . . . 1 . . Worker 13 | . 2 . . . . . . . . . . . . . 2 . . . . . 6 1 . . 2 Builder 12 | . 1 . . . 2 . . 2 . . . . . . . 1 . . . . 4 1 . 1 . Tunneler 6 | . . . . . 1 . . . . 1 . . . . . 1 . . . . 2 . 1 . . Hauler 4 | . . . . . 2 . . . . . . . . . . 1 . . . . . . 1 . . Recycler 4 | . 1 . . . 1 . . . . . . . . . . 1 . . . . . . . 1 . Mechanic 1 | . 1 . . . . . . . . . . . . . . . . . . . . . . . . Operator 15 | . 3 . . . 1 . . . . . . . . . . . . . . 8 3 . . . . Watcher 20 | . 1 . . . 3 . 1 2 . . . . . . 4 2 . 1 . . 3 . 2 1 . Swarmer 60 | . . 3 . 3 12 . . 4 . 1 . . . . 11 6 . . . . 5 . 15 . . Cutter 3 | . . . . . . . . . . . . . . . 3 . . . . . . . . . . Saboteur 2 | . . . . . . . . . . . . . . . . 2 . . . . . . . . . Grunt 88 | . 12 . . 1 6 . 5 2 . 2 2 . . 6 7 18 8 3 . . 1 1 12 . 2 Brawler 6 | . . . . . 1 . . . . . 1 . . 1 . . . . . . . . 3 . . Duelist 8 | . . . . . . . 1 . . . . . . . . 2 . . . . 3 . 2 . . Protector 1 | . . . . . . . . . . . . . . . . . . . . . . . 1 . . Sentry 42 | . . . . . 6 . 2 4 . . 1 . . 1 7 2 . 10 . . 2 2 3 2 . Specialist 3 | . . . . . . . . . . . . . . . . 2 . . . . . 1 . . . Hunter 23 | . . . . . . . . 1 . . . . . . 1 3 . 2 1 . 2 3 4 4 2 Programmer 58 | . . . . . . 1 . 3 . . . . . . 8 8 2 . . . 10 7 10 8 1 Heavy 5 | . . . . . . . . . . 1 . . . . . 1 . . . . 1 2 . . . Compactor 5 | . . . . . . . . . 5 . . . . . . . . . . . . . . . . Cetus Guard 1 | . . . . . . . . . . . . . . . . . . . 1 . . . . . . Z-Light 1 | . . . . . . . . . . . . . 1 . . . . . . . . . . . . Assembler 1 | . . . . . . . . . . . . . 1 . . . . . . . . . . . . Assembled 34 | . . . . . . . . . . . . . 34 . . . . . . . . . . . . Golem 2 | . . . . . . . . . . . . . 2 . . . . . . . . . . . . Butcher 2 | . . . . . . . . . . . . . 2 . . . . . . . . . . . . Best Kill Streak 33 | . 3 3 . 3 7 1 3 5 2 2 3 . 33 5 6 10 5 4 1 8 8 4 10 4 2 Combat Bots Only 32 | . 2 3 . 3 4 1 3 4 2 2 3 . 32 5 4 9 5 4 1 . 4 3 10 3 2 Max Kills in Single Turn 21 | . 3 2 . 2 4 1 1 5 1 1 1 . 21 3 5 4 1 1 1 1 2 2 6 2 2 Gunslinging . | . . . . . . . . . . . . . . . . . . . . . . . . . . Exploded 21 | . 1 1 . 2 3 . 1 3 . . . . 21 3 2 3 . . . . . . 6 . 1 Melee . | . . . . . . . . . . . . . . . . . . . . . . . . . . Uniques/NPCs Destroyed 1 | . . . . . . . . . . . . . 1 . . . . . . . . . . . . Z-Imprinter (-7/Deep Caves) Combat | -11 -10 -10 -10 -9 -8 -8 -8 -7 -7 -7 -7 -7 -7 -6 -6 -5 -4 -4 -4 -4 -4 -3 -2 -1 -1 -------- Run | Jun Mat Min Exi Min Mat Gar Mat Fac Was Fac Low Zio Dee Pro Fac Fac Fac Ext Cet Arc Hub Res Res Acc Com Damage Taken 20064 | . 759 26 . 80 390 19 518 964 . 266 125 . 300 78 1794 2196 488 851 110 5 1204 1591 1272 770 6258 Core 2839 | . 181 . . 16 133 5 49 95 . . 13 . 64 . 147 148 32 43 12 . 47 87 137 34 1596 Absorbed by Shields 4645 | . . . . . . . . 213 . 101 49 . . . . . . 400 116 6 642 641 1282 574 621 Reduced by Siege Mode 43 | . . . . . . . . . . 9 . . . . . . . . . . . . . 34 . Redirected to Shielding 62 | . 36 . . 4 10 . . . . . . . 12 . . . . . . . . . . . . Regen/Repaired (Parts) 1598 | . . . . . 628 . . 748 . 71 64 . 87 . . . . . . . . . . . . Core Remaining (%) 77 | 100 . . . 21 . . 66 . . . . . . 75 82 85 . . . . 88 93 90 . . Volleys Fired 936 | . 111 2 . 4 54 4 23 42 34 22 11 . 30 12 94 92 30 47 7 12 67 46 92 69 31 Largest 3 | . 2 2 . 2 2 2 2 2 2 2 2 . 2 2 2 2 2 2 2 2 2 3 3 3 3 Hottest 151 | . 60 73 . 53 96 147 147 147 147 147 147 . 151 86 64 64 50 50 50 50 64 75 75 75 80 Shots Fired 1689 | . 158 3 . 8 91 8 38 70 69 43 22 . 53 16 164 158 59 94 13 24 121 101 174 147 55 Gun 196 | . 158 2 . 4 19 . . . . . 4 . 2 . 6 . . . . . . . . . 1 Cannon 1421 | . . . . . 63 8 34 66 68 43 18 . 45 13 156 152 59 94 13 24 119 101 158 145 42 Launcher 68 | . . 1 . 4 9 . 4 4 . . . . 6 3 2 6 . . . . 2 . 16 . 11 Special 4 | . . . . . . . . . 1 . . . . . . . . . . . . . . 2 1 Kinetic 318 | . 96 . . 4 82 4 15 26 35 21 7 . 20 1 6 . . . . . . . . . 1 Thermal 1269 | . 45 2 . . . 4 19 40 33 22 15 . 14 12 156 152 59 94 13 24 119 101 158 145 42 Explosive 65 | . . 1 . 4 9 . 4 4 . . . . 6 3 2 6 . . . . 2 . 16 . 8 Electromagnetic 33 | . 17 . . . . . . . . . . . 13 . . . . . . . . . . . 3 Robot Hit Streak 48 | . 14 3 . 6 9 3 6 12 7 20 8 . 12 18 23 28 48 35 6 10 16 34 22 17 20 Robot Miss Streak 5 | . 4 . . 3 5 1 3 2 2 1 3 . 3 1 4 1 1 2 1 1 3 2 2 3 4 Penetration Max 1 | . . . . . . 1 . . . . . . . . 1 . . . . . . . . . . Secondary Targets 1 | . 1 . . . . . . . . . . . . . . . . . . . . . . . . Max Gunslinging Chain 1 | . 1 . . . . . . . . . . . . . . . . . . . . . . . . Shots Hit Robots 1000 | . 97 2 . 5 49 4 17 39 47 28 14 . 27 12 75 109 27 80 8 20 83 66 101 68 22 Core Hits 706 | . 44 3 . 3 45 4 18 26 11 7 8 . 74 20 49 80 18 32 3 14 63 30 98 27 29 Critical Kills 6 | . 1 . . . . . . . 1 . . . 3 1 . . . . . . . . . . . Critical Parts Destroyed 3 | . . . . . 1 . . . . . . . 2 . . . . . . . . . . . . Critical Strikes 13 | . 1 . . . 1 . . . 1 1 . . 8 1 . . . . . . . . . . . Meltdown 1 | . . . . . . . . . 1 . . . . . . . . . . . . . . . . Destroy 11 | . 1 . . . 1 . . . . . . . 8 1 . . . . . . . . . . . Blast 1 | . . . . . . . . . . 1 . . . . . . . . . . . . . . . Melee Attacks 4 | . . . . . . . . . . . . 4 . . . . . . . . . . . . . Impact 4 | . . . . . . . . . . . . 4 . . . . . . . . . . . . . Slashing . | . . . . . . . . . . . . . . . . . . . . . . . . . . Piercing . | . . . . . . . . . . . . . . . . . . . . . . . . . . Sneak Attacks . | . . . . . . . . . . . . . . . . . . . . . . . . . . Combat Hostiles . | . . . . . . . . . . . . . . . . . . . . . . . . . . Follow-up Attacks . | . . . . . . . . . . . . . . . . . . . . . . . . . . Damage Inflicted 53792 | . 1473 56 . 272 2337 168 1160 1994 1827 1010 479 . 2770 816 4410 6817 1308 3483 348 907 5153 3264 8770 3160 1810 Guns 1901 | . 1022 22 . 26 350 . . . . . 38 . 34 . 375 . . . . . . . . . 34 Cannons 37900 | . . . . . 868 157 618 1322 1827 1010 441 . 520 396 3360 4808 1308 3441 348 907 4116 3264 5287 3119 783 Explosions 13642 | . 421 34 . 243 1119 . 537 672 . . . . 2216 420 633 2004 . . . . 915 . 3435 . 993 Melee . | . . . . . . . . . . . . . . . . . . . . . . . . . . Ramming 349 | . 30 . . 3 . 11 5 . . . . . . . 42 5 . 42 . . 122 . 48 41 . Kinetic 4930 | . 502 . . 26 1218 124 261 599 1001 442 193 . 139 16 375 . . . . . . . . . 34 Thermal 35417 | . 452 56 . . . 33 357 1005 826 568 286 . 162 380 3747 4972 1308 3441 348 907 4116 3264 5287 3119 783 Explosive 11747 | . 253 . . 243 1119 . 537 390 . . . . 2216 420 246 1798 . . . . 382 . 3435 . 708 Electromagnetic 1349 | . 236 . . . . . . . . . . . 253 . . 42 . . . . 533 . . . 285 Impact . | . . . . . . . . . . . . . . . . . . . . . . . . . . Slashing . | . . . . . . . . . . . . . . . . . . . . . . . . . . Piercing . | . . . . . . . . . . . . . . . . . . . . . . . . . . Highest Corruption 20 | . 1 1 1 1 . . . 3 3 4 4 4 . . . 5 . . . . 10 6 2 7 20 Average Corruption 3 | . 1 1 1 1 . . . 2 3 3 4 4 . . . 2 . . . . 3 3 1 5 8 Corruption Purged . | . . . . . . . . . . . . . . . . . . . . . . . . . . Corruption Blocked . | . . . . . . . . . . . . . . . . . . . . . . . . . . Effects 271 | . 7 1 3 2 . . . 29 10 24 23 . . . . 33 . . . . 23 10 28 57 21 Message Errors 59 | . 2 1 . . . . . 9 2 3 7 . . . . 8 . . . . 4 . 7 11 5 Matter Fused 65 | . 2 . 1 2 . . . 7 1 5 7 . . . . 3 . . . . 4 3 9 19 2 Heat Flow Errors 34 | . . . . . . . . 6 2 4 2 . . . . 4 . . . . 3 1 2 6 4 Energy Discharges 39 | . 2 . . . . . . 5 . 5 2 . . . . 6 . . . . 5 3 3 6 2 Parts Rejected 2 | . . . . . . . . . . . . . . . . 1 . . . . . . . 1 . Parts Fused 2 | . . . . . . . . . . . . . . . . 1 . . . . . . . . 1 Data Loss (minor) 26 | . . . 2 . . . . 1 3 3 4 . . . . 1 . . . . 2 2 4 3 1 Data Loss (major) 19 | . . . . . . . . 1 1 2 1 . . . . 5 . . . . 2 . 1 5 1 Misfires 8 | . . . . . . . . . 1 2 . . . . . 1 . . . . . . 2 2 . Alerts 3 | . . . . . . . . . . . . . . . . 1 . . . . 1 . . 1 . Misdirections 4 | . . . . . . . . . . . . . . . . . . . . . . . . . 4 Weapon Failures 10 | . 1 . . . . . . . . . . . . . . 2 . . . . 2 1 . 3 1 Overload Shots . | . . . . . . . . . . . . . . . . . . . . . . . . . . Overflow Damage 1823 | . 26 . . 8 137 . 16 106 . 16 6 . 92 . 320 195 7 55 1 41 283 181 171 160 2 Projectiles 1250 | . . . . . 17 . 7 1 . 16 6 . . . 250 169 7 45 1 41 244 181 106 159 . Explosions 525 | . 26 . . 8 120 . 9 105 . . . . 92 . 70 26 . . . . 10 . 57 . 2 Melee 48 | . . . . . . . . . . . . . . . . . . 10 . . 29 . 8 1 . Knockbacks 19 | . . . . . 8 . 1 1 . 3 2 . . . . 1 . 1 . . 1 . 1 . . Impact 4 | . . . . . . . . . . . . . . . . 1 . 1 . . 1 . 1 . . Kinetic 15 | . . . . . 8 . 1 1 . 3 2 . . . . . . . . . . . . . . Secondary . | . . . . . . . . . . . . . . . . . . . . . . . . . . Self-Inflicted Damage 1008 | . 61 . . 42 2 5 2 264 . . . . . . . 306 . . . . 195 . 120 . 11 Shots 23 | . 2 . . 2 1 . . 4 . . . . . . . 7 . . . . 3 . 3 . 1 Rammed 11 | . 6 . . 2 . 1 1 . . . . . . . . . . . . . . . . 1 . Targets Rammed 26 | . 6 . . 2 . 1 1 . . . . . . . 4 2 . 2 . . 6 . 1 1 . Kicked 15 | . . . . . . . . . . . . . . . 4 2 . 2 . . 6 . 1 . . Crushed . | . . . . . . . . . . . . . . . . . . . . . . . . . . Highest Temperature 602 | . 141 12 . 18 602 168 195 341 306 188 172 . 120 60 17 255 . . . . 198 227 234 241 231 Average Temperature 70 | . 36 9 . 9 124 66 72 98 60 46 37 . 37 26 4 100 . . . . 80 127 115 81 104 Received Heat Transfer 2260 | . 399 . . 12 90 . 225 174 . 76 30 . 50 36 180 270 138 135 8 . 12 271 136 . 18 Effects 10 | . . . . . 10 . . . . . . . . . . . . . . . . . . . . Interference 3 | . . . . . 3 . . . . . . . . . . . . . . . . . . . . Matter Decay 1 | . . . . . 1 . . . . . . . . . . . . . . . . . . . . Damage (minor) 1 | . . . . . 1 . . . . . . . . . . . . . . . . . . . . Damage (major) 4 | . . . . . 4 . . . . . . . . . . . . . . . . . . . . Damage (core) 1 | . . . . . 1 . . . . . . . . . . . . . . . . . . . . Siege Activations 3 | . . . . . . . . . . 1 . . . . . . . . . . . . . 2 . Total Turns 195 | . . . . . . . . . . 44 . . . . . . . . . . . . . 151 . Longest Duration 132 | . . . . . . . . . . 44 . . . . . . . . . . . . . 132 . Robots Corrupted 3 | . 1 . . . . . . . . . . . 2 . . . . . . . . . . . . Combat Hostiles 2 | . . . . . . . . . . . . . 2 . . . . . . . . . . . . Parts Fried 3 | . 1 . . . . . . . . . . . . . . . . . 1 . 1 . . . . Impact Corruptions 4 | . . . . . . . . . . . . . . . . . . 1 . . 1 . 1 1 . Robots Melted 1 | . . . . . . . . . 1 . . . . . . . . . . . . . . . . Combat Hostiles 1 | . . . . . . . . . 1 . . . . . . . . . . . . . . . . Parts Melted 24 | . . . . . . . . . 1 . . . . . 2 3 1 1 . 5 1 4 3 3 . Heat Transferred 20906 | . 825 150 . . . 37 370 890 888 555 370 . 185 200 2075 2725 700 1887 200 500 2075 1725 2450 1650 449 Parts Sabotaged . | . . . . . . . . . . . . . . . . . . . . . . . . . . Parts Stolen 2 | . . . . . . . . . . . 2 . . . . . . . . . . . . . . Parts Stripped . | . . . . . . . . . . . . . . . . . . . . . . . . . . Power Chain Reactions 4 | . 3 . . . . . . . . 1 . . . . . . . . . . . . . . . Missiles Intercepted . | . . . . . . . . . . . . . . . . . . . . . . . . . . Alert | -11 -10 -10 -10 -9 -8 -8 -8 -7 -7 -7 -7 -7 -7 -6 -6 -5 -4 -4 -4 -4 -4 -3 -2 -1 -1 ------- Run | Jun Mat Min Exi Min Mat Gar Mat Fac Was Fac Low Zio Dee Pro Fac Fac Fac Ext Cet Arc Hub Res Res Acc Com Peak Influence 1594 | . 226 129 . 130 539 532 838 565 171 1067 . . . . 919 1594 941 755 878 620 1008 659 1410 844 859 Initial 838 | . . 31 . . 50 94 259 324 166 . . . . . 68 450 780 422 396 351 147 528 351 838 362 Average 457 | . 58 126 . 60 381 267 666 329 116 752 . . . . 237 957 808 437 645 515 313 510 755 486 551 Maximum Alert Level 4 | . 1 . . . 2 2 3 2 . 3 . . . . 3 4 3 3 3 2 3 2 4 3 3 Low Security (%) 19 | 100 99 100 . 100 11 27 . 8 100 5 . . . . 50 . . . . . 28 . 3 . . Level 1 30 | . . . . . 33 68 7 65 . 1 . . . . 32 . . 49 10 2 46 17 19 50 14 Level 2 28 | . . . . . 54 3 39 25 . 35 . . . . 10 14 . 41 21 97 23 82 21 30 69 Level 3 17 | . . . . . . . 53 . . 56 . . . . 6 48 100 9 67 . 1 . 38 18 15 Level 4 4 | . . . . . . . . . . . . . . . . 36 . . . . . . 16 . . Level 5 . | . . . . . . . . . . . . . . . . . . . . . . . . . . High Security . | . . . . . . . . . . . . . . . . . . . . . . . . . . Max Security . | . . . . . . . . . . . . . . . . . . . . . . . . . . Squads Dispatched 101 | . 3 . . 1 4 . 7 5 . 10 . . . . 18 12 3 . . . 10 6 15 5 2 Investigation 19 | . . . . 1 2 . 3 2 . 2 . . . . 3 2 . . . . . 2 2 . . Extermination 36 | . . . . . . . . 3 . 1 . . . . 7 4 1 . . . 6 2 6 4 2 Reinforcement 23 | . 3 . . . 2 . 3 . . 3 . . . . 2 2 1 . . . 2 2 2 1 . Assault 13 | . . . . . . . 1 . . 1 . . . . . 4 1 . . . 1 . 5 . . Garrison 10 | . . . . . . . . . . 3 . . . . 6 . . . . . 1 . . . . Intercept . | . . . . . . . . . . . . . . . . . . . . . . . . . . Searches Triggered . | . . . . . . . . . . . . . . . . . . . . . . . . . . Construction Impeded 2 | . . . . . . . 1 . . . . . . . . . . . . . . . 1 . . Haulers Reinforced . | . . . . . . . . . . . . . . . . . . . . . . . . . . Active Scanning Responses . | . . . . . . . . . . . . . . . . . . . . . . . . . . Cargo Convoy Interrupts . | . . . . . . . . . . . . . . . . . . . . . . . . . . Stealth | -11 -10 -10 -10 -9 -8 -8 -8 -7 -7 -7 -7 -7 -7 -6 -6 -5 -4 -4 -4 -4 -4 -3 -2 -1 -1 --------- Run | Jun Mat Min Exi Min Mat Gar Mat Fac Was Fac Low Zio Dee Pro Fac Fac Fac Ext Cet Arc Hub Res Res Acc Com Distress Signals 21 | . 2 . . . 2 . 4 . . . . . . . 3 . . . 1 . 1 3 . 2 3 Communications Jammed 151 | . . . . . . . . . . . . . . . . . . 9 51 . 49 18 4 1 19 Distress Signals 147 | . . . . . . . . . . . . . . . . . . 9 51 . 48 15 4 1 19 Times Spotted 553 | . 39 3 . 2 41 1 30 19 6 22 7 . 55 11 42 51 10 31 12 4 47 27 45 21 27 Peak Tracking Total 36 | . 4 2 . 1 7 1 4 4 2 4 3 . 36 7 7 8 5 3 5 1 6 8 7 3 9 Tactical Retreats 18 | . 1 . . . 1 . 1 . . . 1 . 1 . 2 5 . . . . 2 3 . . 1 Traps | -11 -10 -10 -10 -9 -8 -8 -8 -7 -7 -7 -7 -7 -7 -6 -6 -5 -4 -4 -4 -4 -4 -3 -2 -1 -1 ------- Run | Jun Mat Min Exi Min Mat Gar Mat Fac Was Fac Low Zio Dee Pro Fac Fac Fac Ext Cet Arc Hub Res Res Acc Com Traps Triggered 25 | . 1 . . . 2 . 2 4 . 3 . . . . . 1 . 1 . . 1 3 4 1 2 Indirectly 3 | . . . . . . . . . . 2 . . . . . . . . . . . . . . 1 Trap Hack Attempts . | . . . . . . . . . . . . . . . . . . . . . . . . . . Triggered . | . . . . . . . . . . . . . . . . . . . . . . . . . . Disarmed . | . . . . . . . . . . . . . . . . . . . . . . . . . . Reprogrammed . | . . . . . . . . . . . . . . . . . . . . . . . . . . Reused . | . . . . . . . . . . . . . . . . . . . . . . . . . . Traps Extracted . | . . . . . . . . . . . . . . . . . . . . . . . . . . Installed . | . . . . . . . . . . . . . . . . . . . . . . . . . . Triggered 3 | . 1 . . . . . . . . 1 . . . 1 . . . . . . . . . . . Machines | -11 -10 -10 -10 -9 -8 -8 -8 -7 -7 -7 -7 -7 -7 -6 -6 -5 -4 -4 -4 -4 -4 -3 -2 -1 -1 ---------- Run | Jun Mat Min Exi Min Mat Gar Mat Fac Was Fac Low Zio Dee Pro Fac Fac Fac Ext Cet Arc Hub Res Res Acc Com Machines Disabled 111 | . 1 1 . . 3 . 7 9 . 3 . . 3 . 13 31 . 1 4 2 21 . 5 2 5 Max in Single Turn 14 | . 1 1 . . 1 . . 4 . 1 . . 1 . 4 12 . 1 1 . 14 . 2 1 1 Garrison Access 5 | . . . . . . . . 1 . 1 . . . . 1 1 . . . . . . 1 . . Network Hub 2 | . . . . . . . . . . . . . . . . . . . . . 2 . . . . Machines Repaired . | . . . . . . . . . . . . . . . . . . . . . . . . . . Machines Sabotaged . | . . . . . . . . . . . . . . . . . . . . . . . . . . Overloaded Fab Kills . | . . . . . . . . . . . . . . . . . . . . . . . . . . Hacking | -11 -10 -10 -10 -9 -8 -8 -8 -7 -7 -7 -7 -7 -7 -6 -6 -5 -4 -4 -4 -4 -4 -3 -2 -1 -1 --------- Run | Jun Mat Min Exi Min Mat Gar Mat Fac Was Fac Low Zio Dee Pro Fac Fac Fac Ext Cet Arc Hub Res Res Acc Com Machines Accessed 105 | . 2 . 1 1 11 4 7 14 . 7 1 1 . . 18 7 1 6 . . 5 4 8 5 2 Terminals 67 | . 2 . . 1 7 4 5 6 . 3 . . . . 10 3 1 6 . . 4 3 5 5 2 Fabricators 10 | . . . . . . . . 2 . 1 . . . . 3 2 . . . . . . 2 . . Repair Stations 6 | . . . . . 1 . . 3 . 1 . . . . . . . . . . . 1 . . . Recycling Units . | . . . . . . . . . . . . . . . . . . . . . . . . . . Scanalyzers 10 | . . . . . 2 . 2 2 . . . . . . 3 1 . . . . . . . . . Garrison Access 9 | . . . . . 1 . . 1 . 2 . . . . 2 1 . . . . 1 . 1 . . Total Hacks 292 | . 8 . 1 3 35 11 17 34 . 20 1 3 . . 45 13 2 12 . . 17 15 30 18 7 Successful 143 | . 3 . 1 1 25 3 10 18 . 6 1 3 . . 19 8 1 5 . . 8 4 12 12 3 Failed 147 | . 4 . . 1 10 8 7 16 . 14 . . . . 26 5 1 7 . . 9 11 18 6 4 Catastrophic 18 | . . . . . . 2 1 1 . 3 . . . . 3 2 . . . . 1 2 3 . . Database Lockouts 2 | . 1 . . 1 . . . . . . . . . . . . . . . . . . . . . Manual 133 | . 8 . 1 4 17 3 6 10 . 10 . 2 . . 20 7 2 6 3 1 13 5 14 1 . Terminals 201 | . 8 . . 3 24 11 11 16 . 11 . . . . 23 7 2 12 . . 16 10 22 18 7 Fabricators 20 | . . . . . . . . 3 . 2 . . . . 8 3 . . . . . . 4 . . Repair Stations 19 | . . . . . 4 . . 7 . 3 . . . . . . . . . . . 5 . . . Recycling Units . | . . . . . . . . . . . . . . . . . . . . . . . . . . Scanalyzers 33 | . . . . . 6 . 6 7 . . . . . . 12 2 . . . . . . . . . Garrison Access 14 | . . . . . 1 . . 1 . 4 . . . . 2 1 . . . . 1 . 4 . . Terminal Hacks 68 | . 1 . 1 1 13 3 4 . . 2 1 3 . . 4 1 . 5 . . 6 2 6 12 3 Record 5 | . . . . . . . . . . . 1 . . . . . . . . . 1 . 1 2 . Part Schematic 4 | . . . . . . . . . . . . 3 . . 1 . . . . . . . . . . Robot Analysis 8 | . 1 . . 1 6 . . . . . . . . . . . . . . . . . . . . Open Door 5 | . . . . . . 1 . . . . . . . . . . . 4 . . . . . . . Level Access Points 1 | . . . . . . . . . . . . . . . 1 . . . . . . . . . . Branch Access Points 3 | . . . . . . . . . . 1 . . . . . . . . . . . . 1 1 . Machine Index 2 | . . . . . . . . . . . . . . . . . . . . . . . . 1 1 Terminal Index 2 | . . . . . 1 . . . . 1 . . . . . . . . . . . . . . . Alert Level 11 | . . . . . 1 . 2 . . . . . . . 2 . . 1 . . 2 1 . 1 1 Unreport Threat 11 | . . . . . 2 . 2 . . . . . . . . 1 . . . . 2 1 1 2 . Locate Traps 1 | . . . . . . . . . . . . . . . . . . . . . . . . 1 . Surveillance Status 1 | . . . . . 1 . . . . . . . . . . . . . . . . . . . . Patrol Status 1 | . . . . . . . . . . . . . . . . . . . . . . . . 1 . Extermination Status 1 | . . . . . . . . . . . . . . . . . . . . . . . . 1 . Recall Extermination 2 | . . . . . . . . . . . . . . . . . . . . . . . 1 1 . Recall Reinforcements 2 | . . . . . 1 . . . . . . . . . . . . . . . . . 1 . . Recall Assault 1 | . . . . . . . . . . . . . . . . . . . . . . . 1 . . Zone Layout 3 | . . . . . 1 . . . . . . . . . . . . . . . 1 . . 1 . Garrison Registry 1 | . . . . . . 1 . . . . . . . . . . . . . . . . . . . Security Stations 1 | . . . . . . 1 . . . . . . . . . . . . . . . . . . . EX-Prototype ID Bank 1 | . . . 1 . . . . . . . . . . . . . . . . . . . . . . Disengage Seal 1 | . . . . . . . . . . . . . . . . . . . . . . . . . 1 Fabricator Hacks 13 | . . . . . . . . 2 . . . . . . 5 2 . . . . . . 4 . . Network Status 4 | . . . . . . . . 1 . . . . . . 1 1 . . . . . . 1 . . Load Schematic 4 | . . . . . . . . . . . . . . . 2 . . . . . . . 2 . . Build 5 | . . . . . . . . 1 . . . . . . 2 1 . . . . . . 1 . . Repair Station Hacks 13 | . . . . . 4 . . 6 . 2 . . . . . . . . . . . 1 . . . Scan Component 7 | . . . . . 2 . . 3 . 1 . . . . . . . . . . . 1 . . . Repair 6 | . . . . . 2 . . 3 . 1 . . . . . . . . . . . . . . . Recycling Unit Hacks . | . . . . . . . . . . . . . . . . . . . . . . . . . . Scanalyzer 23 | . . . . . 5 . 6 5 . . . . . . 5 2 . . . . . . . . . Insert Component 11 | . . . . . 2 . 2 3 . . . . . . 3 1 . . . . . . . . . Analyze 12 | . . . . . 3 . 4 2 . . . . . . 2 1 . . . . . . . . . Garrison Access Hacks 6 | . . . . . 1 . . 1 . 1 . . . . 1 1 . . . . . . 1 . . Unlock Access 1 | . . . . . 1 . . . . . . . . . . . . . . . . . . . . Seal Access 5 | . . . . . . . . 1 . 1 . . . . 1 1 . . . . . . 1 . . Unauthorized Hacks 20 | . 2 . . . 2 . . 4 . 1 . . . . 4 2 1 . . . 2 1 1 . . Terminals 20 | . 2 . . . 2 . . 4 . 1 . . . . 4 2 1 . . . 2 1 1 . . Assimilate 3 | . . . . . 1 . . 1 . . . . . . . . . . . . . . 1 . . Botnet 16 | . 1 . . . 1 . . 3 . 1 . . . . 4 2 1 . . . 2 1 . . . Operators 1 | . 1 . . . . . . . . . . . . . . . . . . . . . . . . Fabricators . | . . . . . . . . . . . . . . . . . . . . . . . . . . Repair Stations . | . . . . . . . . . . . . . . . . . . . . . . . . . . Recycling Units . | . . . . . . . . . . . . . . . . . . . . . . . . . . Scanalyzers . | . . . . . . . . . . . . . . . . . . . . . . . . . . Garrison Access . | . . . . . . . . . . . . . . . . . . . . . . . . . . Data Cores Recovered 3 | . . . . . . . . . . . . . . . . . . . . . 3 . . . . Used . | . . . . . . . . . . . . . . . . . . . . . . . . . . Hacking Detections 83 | . 1 . . 1 9 3 7 13 . 6 . . . . 14 5 . 3 2 . 3 3 7 5 1 Full Trace Events 17 | . . . . 1 3 1 2 2 . 1 . . . . 3 2 . . . . . 1 1 . . Feedback Events 2 | . . . . . . 1 . 1 . . . . . . . . . . . . . . . . . Corruption 1 | . . . . . . . . 1 . . . . . . . . . . . . . . . . . Hackware Fried 1 | . . . . . . 1 . . . . . . . . . . . . . . . . . . . Feedback Blocked . | . . . . . . . . . . . . . . . . . . . . . . . . . . Robot Schematics Acquired . | . . . . . . . . . . . . . . . . . . . . . . . . . . Robots Built . | . . . . . . . . . . . . . . . . . . . . . . . . . . Authchips . | . . . . . . . . . . . . . . . . . . . . . . . . . . Time . | . . . . . . . . . . . . . . . . . . . . . . . . . . Total Robot Build Rating . | . . . . . . . . . . . . . . . . . . . . . . . . . . Part Schematics Acquired 11 | . . . . . 1 . 1 2 . . . 3 . . 3 1 . . . . . . . . . Parts Built 6 | . . . . . . . . 2 . . . . . . 2 1 . . . . . . 1 . . Authchips 1 | . . . . . . . . . . . . . . . 1 . . . . . . . . . . Time 363 | . . . . . . . . 42 . . . . . . 104 111 . . . . . . 106 . . Total Part Build Rating 30 | . . . . . . . . 8 . . . . . . 7 9 . . . . . . 6 . . Parts Repaired 6 | . . . . . 2 . . 3 . 1 . . . . . . . . . . . . . . . Time 282 | . . . . . 70 . . 134 . 78 . . . . . . . . . . . . . . . Parts Recycled . | . . . . . . . . . . . . . . . . . . . . . . . . . . Recycled Matter . | . . . . . . . . . . . . . . . . . . . . . . . . . . Retrieved Matter . | . . . . . . . . . . . . . . . . . . . . . . . . . . Retrieved Components . | . . . . . . . . . . . . . . . . . . . . . . . . . . Parts Scanalyzed 8 | . . . . . 2 . 1 2 . . . . . . 2 1 . . . . . . . . . Part Schematics Acquired 7 | . . . . . 1 . 1 2 . . . . . . 2 1 . . . . . . . . . Parts Damaged . | . . . . . . . . . . . . . . . . . . . . . . . . . . Bothacking | -11 -10 -10 -10 -9 -8 -8 -8 -7 -7 -7 -7 -7 -7 -6 -6 -5 -4 -4 -4 -4 -4 -3 -2 -1 -1 ------------ Run | Jun Mat Min Exi Min Mat Gar Mat Fac Was Fac Low Zio Dee Pro Fac Fac Fac Ext Cet Arc Hub Res Res Acc Com Used RIF Installer . | . . . . . . . . . . . . . . . . . . . . . . . . . . Robots Hacked . | . . . . . . . . . . . . . . . . . . . . . . . . . . Non-combat . | . . . . . . . . . . . . . . . . . . . . . . . . . . Combat . | . . . . . . . . . . . . . . . . . . . . . . . . . . Robot Hacks Applied . | . . . . . . . . . . . . . . . . . . . . . . . . . . Relay Couplers Released 4 | . . . . . . 4 . . . . . . . . . . . . . . . . . . . Programmers 4 | . . . . . . 4 . . . . . . . . . . . . . . . . . . . Fabnet Peak Effective % . | . . . . . . . . . . . . . . . . . . . . . . . . . . Robots Rewired 33 | . . . . . . 8 . . . . . . . 2 . . . 23 . . . . . . . Allies Hacked 1 | . . . . . . . . . . . . . . . . . . . . . 1 . . . . Hacks Repelled . | . . . . . . . . . . . . . . . . . . . . . . . . . . Allies | -11 -10 -10 -10 -9 -8 -8 -8 -7 -7 -7 -7 -7 -7 -6 -6 -5 -4 -4 -4 -4 -4 -3 -2 -1 -1 -------- Run | Jun Mat Min Exi Min Mat Gar Mat Fac Was Fac Low Zio Dee Pro Fac Fac Fac Ext Cet Arc Hub Res Res Acc Com Total Allies 78 | . . . . . 1 10 . 1 20 . . 11 1 2 . . . 29 . . . . 1 2 . Largest Group 19 | . . . . . 1 10 10 1 19 17 2 13 14 4 4 . . 18 17 9 8 . 1 2 2 Highest-Rated Group 890 | . . . . . 10 210 210 26 557 517 54 463 582 190 190 . . 890 850 525 364 . 45 438 438 Highest-Rated Ally 219 | . . . . . 10 39 39 26 141 123 27 96 119 96 96 . . 159 159 159 51 . 45 219 219 Total Orders 14 | . . . . . 1 . . . . . . . . . . . . . . . . . 2 11 . STAY 3 | . . . . . 1 . . . . . . . . . . . . . . . . . . 2 . EXPLORE 10 | . . . . . . . . . . . . . . . . . . . . . . . 2 8 . RETURN 1 | . . . . . . . . . . . . . . . . . . . . . . . . 1 . Ally Attacks 799 | . . . . . . 3 119 . 22 141 . . 195 22 12 . . 107 72 27 33 . . . 46 Total Damage 21788 | . . . . . . 24 2332 . 373 3293 . . 4004 662 362 . . 3466 2148 690 881 . . . 3553 Kills 139 | . . . . . . 1 24 . . 36 . . 25 3 1 . . 20 11 4 6 . . . 8 Allies Corrupted 4 | . . . . . . . . . . . . . . . . . . . 1 . 3 . . . . Allies Melted 2 | . . . . . . . . . . 1 . . . . . . . 1 . . . . . . . Field Lobotomies 4 | . . . . . . . . . 1 . . . . . . . . . . . . . . 2 1 Intel | -11 -10 -10 -10 -9 -8 -8 -8 -7 -7 -7 -7 -7 -7 -6 -6 -5 -4 -4 -4 -4 -4 -3 -2 -1 -1 ------- Run | Jun Mat Min Exi Min Mat Gar Mat Fac Was Fac Low Zio Dee Pro Fac Fac Fac Ext Cet Arc Hub Res Res Acc Com Robot Analysis Total 7 | . 1 . . 1 5 . . . . . . . . . . . . . . . . . . . . Derelict Logs Recovered 3 | . . . . . . . . . . . 2 1 . . . . . . . . . . . . . Drone Launches 11 | . . . . . . . . . . . . . . . . . . . . . . . 2 9 . Drone Recoveries 8 | . . . . . . . . . . . . . . . . . . . . . . . 1 7 . Exploration | -11 -10 -10 -10 -9 -8 -8 -8 -7 -7 -7 -7 -7 -7 -6 -6 -5 -4 -4 -4 -4 -4 -3 -2 -1 -1 ------------- Run | Jun Mat Min Exi Min Mat Gar Mat Fac Was Fac Low Zio Dee Pro Fac Fac Fac Ext Cet Arc Hub Res Res Acc Com Turns Passed 34389 | 89 1463 63 386 377 2030 926 975 3124 523 1253 929 1369 1854 511 3417 2110 567 2462 389 726 2446 1023 2508 2319 550 Spaces Moved 16203 | 52 654 35 241 172 1138 565 573 1264 261 687 548 865 1036 293 1370 915 249 972 190 273 1116 399 996 1022 317 Core 77 | 5 . . . . . . . . . . . . . . . . . . . . . . . . 72 Treads 7560 | 47 654 35 241 172 20 . 61 1264 261 687 548 865 1036 293 113 . . . . . . . . 1022 241 Legs 6371 | . . . . . . . . . . . . . . . 1257 915 249 972 190 273 1116 399 996 . 4 Wheels 2195 | . . . . . 1118 565 512 . . . . . . . . . . . . . . . . . . Hover . | . . . . . . . . . . . . . . . . . . . . . . . . . . Flight . | . . . . . . . . . . . . . . . . . . . . . . . . . . Fastest Speed 50 | 50 160 160 160 160 95 140 140 145 150 150 150 155 155 155 180 185 183 183 185 185 185 185 182 145 50 Average Speed 173 | 149 160 160 160 210 136 140 149 217 156 162 162 155 155 155 209 185 184 187 187 185 185 197 184 152 135 Slowest Speed 330 | 160 160 160 160 240 240 140 225 225 225 240 240 155 240 155 270 185 226 242 210 185 185 285 238 156 330 Overloaded Moves . | . . . . . . . . . . . . . . . . . . . . . . . . . . Propulsion Burnouts . | . . . . . . . . . . . . . . . . . . . . . . . . . . Robots Hopped . | . . . . . . . . . . . . . . . . . . . . . . . . . . Cave-ins Triggered . | . . . . . . . . . . . . . . . . . . . . . . . . . . Exploration Rate (%) 50 | 4 94 13 61 42 67 77 63 38 86 22 70 83 78 59 35 28 5 86 67 96 46 15 25 40 15 Regions Visited 25 Branch Regions 12 Pre-discovered Areas 4 | . . . . . . . . . . . 2 2 . . . . . . . . . . . . . Known Exits Taken 5 | . . . . . 1 . 1 . . 1 . . . . 1 . . . . . . . . 1 . Unknown Exits Taken 17 | 1 1 1 1 1 . . . . . . 1 1 1 1 . 1 1 1 1 1 1 1 1 . . Scrap Searched 9 | . . . . 2 . . . . . . 3 4 . . . . . . . . . . . . . Spaces Dug 225 | . . . . . 10 . 4 12 . 7 . 2 2 . 67 23 21 . . . 7 15 20 18 17 Terrain Destroyed 1477 | . 7 15 . 52 93 2 51 133 16 23 8 2 8 37 122 138 29 16 1 3 377 28 220 47 49 Melee 2 | . . . . . . . . . . . . 2 . . . . . . . . . . . . . Projectile 437 | . . . . . 25 2 14 22 16 19 8 . 8 3 67 39 29 16 1 3 26 28 54 47 10 AOE 1038 | . 7 15 . 52 68 . 37 111 . 4 . . . 34 55 99 . . . . 351 . 166 . 39 Terrain Rammed . | . . . . . . . . . . . . . . . . . . . . . . . . . . Walls Destroyed . | . . . . . . . . . . . . . . . . . . . . . . . . . . Machines Disabled . | . . . . . . . . . . . . . . . . . . . . . . . . . . Actions | -11 -10 -10 -10 -9 -8 -8 -8 -7 -7 -7 -7 -7 -7 -6 -6 -5 -4 -4 -4 -4 -4 -3 -2 -1 -1 --------- Run | Jun Mat Min Exi Min Mat Gar Mat Fac Was Fac Low Zio Dee Pro Fac Fac Fac Ext Cet Arc Hub Res Res Acc Com Total 20928 | 60 926 39 242 178 1523 698 658 1562 310 784 567 887 1235 334 1738 1178 297 1524 212 477 1372 555 1524 1659 389 Wait 2951 | 1 144 . . . 243 52 45 231 2 73 . 15 90 . 233 135 17 355 3 169 171 78 367 505 22 Move 16170 | 51 653 34 240 171 1137 555 572 1264 260 686 547 864 1035 292 1369 914 248 971 189 272 1115 398 995 1021 317 Hop . | . . . . . . . . . . . . . . . . . . . . . . . . . . Pick Up 155 | 2 8 2 1 . 34 5 5 4 4 2 1 1 10 2 11 5 . 5 3 4 4 10 16 15 1 Fast Attach 66 | 6 2 . . . 12 1 1 4 1 . 1 . 18 . 4 3 . . 1 4 . 2 3 3 . Attach 59 | . 1 1 . 1 7 . 4 2 . . 2 . 2 . 4 4 1 4 2 . 1 4 5 3 11 Detach 101 | . . . 1 . 6 . 2 . . . 1 . 8 . 5 14 1 12 3 8 2 6 19 10 3 Swap 94 | . 1 . . . 14 2 2 10 3 . 1 2 12 1 6 3 . 1 2 . 2 3 11 16 2 Drop 145 | . . . . . 16 8 3 3 6 1 3 1 30 2 8 6 . 3 2 8 4 8 15 16 2 Fire 936 | . 111 2 . 4 54 4 23 42 34 22 11 . 30 12 94 92 30 47 7 12 67 46 92 69 31 Melee 4 | . . . . . . . . . . . . 4 . . . . . . . . . . . . . Ram 2 | . . . . . . 1 1 . . . . . . . . . . . . . . . . . . Kick 15 | . . . . . . . . . . . . . . . 4 2 . 2 . . 6 . 1 . . Crush 9 | . 6 . . 2 . . . . . . . . . . . . . . . . . . . 1 . Escape Stasis 2 | . . . . . . . . 2 . . . . . . . . . . . . . . . . . Rewire 219 | . . . . . . 70 . . . . . . . 25 . . . 124 . . . . . . . Trap . | . . . . . . . . . . . . . . . . . . . . . . . . . . Miscellaneous . | . . . . . . . . . . . . . . . . . . . . . . . . . . Route ------- -11/Junkyard -10/Materials (discovered 5 exits: [*Mat x3] / [*Min x2]) -10/Mines -10/Exiles (discovered 2 exits: *Min x2) -9/Mines -8/Materials (discovered 3 exits: *Fac x2 / Gar) -8/Garrison (discovered 4 exits: *Mat x4) -8/Materials -7/Factory (discovered 2 exits: *Fac / *Low) -7/Waste -7/Factory (discovered 3 exits: *Fac / *Low x2) -7/Lower Caves (discovered 2 exits: [*Low] / *Zio) -7/Zion (discovered 2 exits: [*Dee] / [*Pro]) -7/Deep Caves -6/Proximity Caves -6/Factory (discovered 4 exits: *Fac x4) -5/Factory (discovered 2 exits: *Fac / [*Upp]) -4/Factory -4/Extension (discovered 3 exits: *Res x2 / *Cet) -4/Cetus -4/Archives (discovered 3 exits: *Res / *Hub x2) -4/Hub_04(d) (discovered 2 exits: *Res x2) -3/Research -2/Research (discovered 3 exits: *Acc / *Qua x2) -1/Access -1/Command History --------- Turn | Location | Event 5 | -11/Junkyard | Discovered new exit (range 15) 90 | -11/Junkyard | Entered Materials 151 | -10/Materials | Central database locked down 308 | -10/Materials | Build established: Mutant 330 | -10/Materials | Discovered new exit (range 16) 699 | -10/Materials | Discovered new exit (range 11) 900 | -10/Materials | Discovered new exit (range 8) 1198 | -10/Materials | Core integrity fell below 50% 1400 | -10/Materials | Discovered new exit (range 16) 1502 | -10/Materials | Discovered new exit (range 16) 1553 | -10/Materials | Entered Mines 1596 | -10/Mines | Met a Derelict bent on vengeance 1609 | -10/Mines | Deemed a non-threat by the Exiles lab entrance 1609 | -10/Mines | Discovered new exit (range 5) 1616 | -10/Mines | Entered Exiles 1643 | -10/Exiles | Discovered new exit (range 15) 1662 | -10/Exiles | Met 8R-AWN 1689 | -10/Exiles | Met EX-HEX 1759 | -10/Exiles | Met EX-BIN 1782 | -10/Exiles | Aligned with FarCom system 1783 | -10/Exiles | Given EX-Vault access code 1823 | -10/Exiles | Opened EX-Vault 1836 | -10/Exiles | Found Field Lobotomy Kit 1871 | -10/Exiles | Warned to stay clear of 0b10 Research branches 1924 | -10/Exiles | Met EX-DEC 1989 | -10/Exiles | Discovered new exit (range 10) 2002 | -10/Exiles | Left Exiles lab with Field Lobotomy Kit 2002 | -10/Exiles | Entered Mines 2291 | -9/Mines | Discovered new exit (range 5) 2342 | -9/Mines | Central database locked down 2379 | -9/Mines | Entered Materials 2379 | -8/Materials | Evolved 4 slots: Utility x4 3001 | -8/Materials | Discovered new exit (range 20) 3397 | -8/Materials | Discovered new exit (range 10) 4179 | -8/Materials | Repaired Hcp. Storage Unit 4301 | -8/Materials | Repaired Hrd. Heavy Armor Plating 4408 | -8/Materials | Identified exit to Garrison 4409 | -8/Materials | Entered Garrison 4409 | -8/Garrison | Discovered recently destroyed garrison 4661 | -8/Garrison | Learned Materials security intel 4723 | -8/Garrison | Discovered new exit (range 12) 5004 | -8/Garrison | Discovered new exit (range 50) 5004 | -8/Garrison | Discovered new exit (range 23) 5004 | -8/Garrison | Discovered new exit (range 43) 5004 | -8/Garrison | Discovered new exit (range 54) 5045 | -8/Garrison | Hacking Suite fried by hacking feedback 5046 | -8/Garrison | Rescued a captive Derelict 5047 | -8/Garrison | Rescued a captive Derelict 5071 | -8/Garrison | Build established: Commander-Mutant 5106 | -8/Garrison | Attempted to access garrison exit controls, blocked by remote lockdown 5256 | -8/Garrison | Attempted to access garrison exit controls, blocked by remote lockdown 5335 | -8/Garrison | Entered Materials 5335 | -8/Materials | Accompanied by 10 allies 6082 | -8/Materials | Build established: Mutant 6135 | -8/Materials | First assault squad dispatched 6197 | -8/Materials | Discovered new exit (range 15) 6273 | -8/Materials | Identified exit to Factory 6310 | -8/Materials | Entered Factory 6310 | -7/Factory | Evolved 2 slots: Propulsion x2 6790 | -7/Factory | Discovered new exit (range 16) 6843 | -7/Factory | Identified exit to Lower Caves 7492 | -7/Factory | Repaired Hvy. Phase Cannon 7544 | -7/Factory | Discovered new exit (range 9) 7755 | -7/Factory | Repaired Mass Driver 8016 | -7/Factory | Fabricated Imp. Deuterium Engine (x2) 8189 | -7/Factory | Repaired Hrd. Heavy Armor Plating 9434 | -7/Factory | Sucked down chute 9434 | -7/Factory | Entered Waste 9435 | -7/Waste | Met a frightened Derelict 9470 | -7/Waste | 1 allies followed down the chute 9473 | -7/Waste | Spotted C-40 Crusher 9473 | -7/Waste | Destroyed C-40 Crusher 9492 | -7/Waste | Spotted C-40 Crusher 9497 | -7/Waste | Destroyed C-40 Crusher 9497 | -7/Waste | Spotted C-40 Crusher 9512 | -7/Waste | Destroyed C-40 Crusher 9528 | -7/Waste | Spotted C-40 Crusher 9548 | -7/Waste | Assimilated C-40 Crusher with FLK Orb 9553 | -7/Waste | Spotted C-40 Crusher 9674 | -7/Waste | Spotted C-40 Crusher 9683 | -7/Waste | Destroyed C-40 Crusher 9706 | -7/Waste | Destroyed C-40 Crusher 9854 | -7/Waste | Discovered new exit (range 16) 9895 | -7/Waste | Warlord forces began an assault 9957 | -7/Waste | Entered Factory 9957 | -7/Factory | Accompanied by 17 allies 10154 | -7/Factory | Repaired Broken Hyp. Gauss Cannon? 10243 | -7/Factory | P-60 Hacker assimilated allied OU-U96(g) 10357 | -7/Factory | First assault squad dispatched 10497 | -7/Factory | Garrison activated, responded to threat 10763 | -7/Factory | Discovered new exit (range 15) 11210 | -7/Factory | Entered Lower Caves 11210 | -7/Lower Caves | Accompanied by 2 allies 11216 | -7/Lower Caves | Met a Warlord Commander 11217 | -7/Lower Caves | Learned location of Warlord (-4) 11223 | -7/Lower Caves | Found Encrypted Comm Array 11487 | -7/Lower Caves | A Derelict revealed a hidden shortcut to a safe place 11513 | -7/Lower Caves | Attracted the attention of an 0b10 checkpoint 11560 | -7/Lower Caves | Discovered new exit (range 12) 11567 | -7/Lower Caves | Learned Factory interactive machine intel 12037 | -7/Lower Caves | Spotted B-75 Beast 12139 | -7/Lower Caves | Entered Zion 12139 | -7/Zion | Accompanied by 2 allies 12180 | -7/Zion | System corruption cleaned by Quarantine Array 12214 | -7/Zion | Received a visual enhancement algorithm 12229 | -7/Zion | Discovered new exit (range 15) 12271 | -7/Zion | Gained Derelict followers 12431 | -7/Zion | Learned Factory trap positions 12522 | -7/Zion | Given A8's code to call for help 12697 | -7/Zion | Gained Derelict followers 13410 | -7/Zion | Gained Derelict followers 13461 | -7/Zion | Enhanced Grunt warped into view, answering call for help 13466 | -7/Zion | Enhanced Grunt warped into view, answering call for help 13481 | -7/Zion | Discovered new exit (range 5) 13482 | -7/Zion | Saw the warning signs outside the Deep Caves entrance 13508 | -7/Zion | Entered Deep Caves 13508 | -7/Deep Caves | Accompanied by 13 allies 13510 | -7/Deep Caves | Met 5H-AD0 13770 | -7/Deep Caves | Z-Facility disabled 13801 | -7/Deep Caves | Attacked by Z-Imprinter 13812 | -7/Deep Caves | Allies destroyed Z-Imprinter 13837 | -7/Deep Caves | Found Prototype Protection 13837 | -7/Deep Caves | Identified Zio. Weapon Casing 13929 | -7/Deep Caves | Found Zio. Weapon Casing 14084 | -7/Deep Caves | Found Zio. Weapon Casing 14143 | -7/Deep Caves | Build established: Scavenger-Mutant 14513 | -7/Deep Caves | Discovered new exit (range 6) 14620 | -7/Deep Caves | Spotted as-47543 14637 | -7/Deep Caves | Destroyed as-47543 14704 | -7/Deep Caves | Spotted as-33762 14712 | -7/Deep Caves | Destroyed as-33762 14736 | -7/Deep Caves | Found Prototype Device 14736 | -7/Deep Caves | Identified Exp. ECM Suite 14749 | -7/Deep Caves | Triggered Deep Caves wall 14749 | -7/Deep Caves | Spotted AS-07325 14749 | -7/Deep Caves | Spotted AS-00848 14756 | -7/Deep Caves | Destroyed AS-07325 14765 | -7/Deep Caves | Allies destroyed AS-00848 14775 | -7/Deep Caves | Found Prototype Ballistic Gun 14775 | -7/Deep Caves | Identified 5H-AD0's Sniper Rifle 14777 | -7/Deep Caves | Destroyed 32 combat bots 14844 | -7/Deep Caves | Found Superbattery 14867 | -7/Deep Caves | Exposed GOLEM chamber 14871 | -7/Deep Caves | Found GOLEM Unit 14876 | -7/Deep Caves | Found GOLEM Unit 14883 | -7/Deep Caves | Found GOLEM Unit 15057 | -7/Deep Caves | Found Zio. Weapon Casing 15161 | -7/Deep Caves | Build established: Golem 15269 | -7/Deep Caves | Found Prototype Processor 15362 | -7/Deep Caves | Entered Proximity Caves 15362 | -6/Proximity Caves | Accompanied by 3 allies 15366 | -6/Proximity Caves | Attracted the attention of an 0b10 outpost 15855 | -6/Proximity Caves | Discovered new exit (range 8) 15873 | -6/Proximity Caves | Entered Factory 15873 | -6/Factory | Accompanied by 4 allies 15873 | -6/Factory | Evolved 2 slots: Power x1, Utility x1 15874 | -6/Factory | Loaded intel: 115 trap records 15875 | -6/Factory | Loaded intel: 52 interactive machine locations 16697 | -6/Factory | Fabricated Huge Storage Unit? 17363 | -6/Factory | Spotted B-75 Beast 17608 | -6/Factory | Garrison activated, responded to threat 17956 | -6/Factory | Garrison activated, responded to threat 18354 | -6/Factory | Fabricated Adv. Hacking Suite (x1) 18778 | -6/Factory | Identified exit to Factory 19290 | -6/Factory | Entered another Factory area 19290 | -5/Factory | Evolved 2 slots: Utility x2 19495 | -5/Factory | Discovered new exit (range 16) 20923 | -5/Factory | Fabricated Hdn. Centrium Leg (x1) 21090 | -5/Factory | First assault squad dispatched 21168 | -5/Factory | Destroyed 9 combat bots 21234 | -5/Factory | Discovered new exit (range 10) 21400 | -5/Factory | Entered another Factory area 21400 | -4/Factory | Evolved 2 slots: Utility x2 21900 | -4/Factory | First assault squad dispatched 21939 | -4/Factory | Lost 3 parts (2n1u) 21951 | -4/Factory | Discovered new exit (range 8) 21967 | -4/Factory | Entered Extension 23250 | -4/Extension | Rescued a captive Derelict 23335 | -4/Extension | Build established: Commander-Golem 23617 | -4/Extension | Spotted B-86 Titan 23633 | -4/Extension | Spotted B-86 Titan 23634 | -4/Extension | Allies destroyed B-86 Titan 23640 | -4/Extension | Allies destroyed B-86 Titan 23679 | -4/Extension | Discovered new exit (range 3) 23934 | -4/Extension | Rescued a captive Derelict 23935 | -4/Extension | Rescued a captive Derelict 24077 | -4/Extension | Rescued A7 24201 | -4/Extension | Rescued a captive Derelict 24202 | -4/Extension | Rescued a captive Derelict 24272 | -4/Extension | Discovered new exit (range 10) 24274 | -4/Extension | Discovered new exit (range 6) 24429 | -4/Extension | Entered Cetus 24429 | -4/Cetus | Accompanied by 17 allies (A7) 24434 | -4/Cetus | Acquired a Cetus Manufacturing Module code from A7 24450 | -4/Cetus | Spotted Cetus Guard 24450 | -4/Cetus | Spotted Cetus Guard 24450 | -4/Cetus | Spotted Cetus Guard 24452 | -4/Cetus | Spotted Cetus Guard 24460 | -4/Cetus | Allies destroyed Cetus Guard 24468 | -4/Cetus | Allies destroyed Cetus Guard 24470 | -4/Cetus | Destroyed Cetus Guard 24472 | -4/Cetus | Allies destroyed Cetus Guard 24553 | -4/Cetus | Cetus Manufacturing Module disabled 24589 | -4/Cetus | Failed to start Cetus Manufacturing Module 24631 | -4/Cetus | Discovered new exit (range 16) 24740 | -4/Cetus | Escorted A7 to Cetus Mainframe 24818 | -4/Cetus | Entered Archives 24818 | -4/Archives | Accompanied by 9 allies (A7) 24823 | -4/Archives | Received a hacking code to weaken MAIN.C 24872 | -4/Archives | Discovered new exit (range 15) 24899 | -4/Archives | Discovered new exit (range 15) 25046 | -4/Archives | Discovered new exit (range 13) 25220 | -4/Archives | Unable to access archive contents 25544 | -4/Archives | Entered Hub_04(d) 25544 | -4/Hub_04(d) | Accompanied by 8 allies 25611 | -4/Hub_04(d) | Discovered new exit (range 10) 26135 | -4/Hub_04(d) | Build established: Golem 26196 | -4/Hub_04(d) | Discovered new exit (range 15) 27350 | -4/Hub_04(d) | Network Hub disabled 27557 | -4/Hub_04(d) | Garrison activated, responded to threat 27840 | -4/Hub_04(d) | First assault squad dispatched 27955 | -4/Hub_04(d) | Network Hub disabled 27961 | -4/Hub_04(d) | System corruption reached 10% 27982 | -4/Hub_04(d) | Spotted Lightning 27985 | -4/Hub_04(d) | Spotted Lightning 27990 | -4/Hub_04(d) | Entered Research 27990 | -3/Research | Evolved 2 slots: Utility x1, Weapon x1 28371 | -3/Research | Build established: Scavenger-Golem 28762 | -3/Research | Lost 3 parts (1u2w) 28952 | -3/Research | Discovered new exit (range 14) 29013 | -3/Research | Entered another Research area 29013 | -2/Research | Evolved 2 slots: Power x1, Utility x1 29167 | -2/Research | Fabricated Smartbomb Launcher? 29170 | -2/Research | Build established: Hacker-Golem 29836 | -2/Research | Identified exit to Quarantine 29960 | -2/Research | Destroyed 10 combat bots 30311 | -2/Research | First assault squad dispatched 31480 | -2/Research | Discovered new exit (range 9) 31521 | -2/Research | Entered Access 31521 | -1/Access | Evolved 2 slots: Propulsion x2 31554 | -1/Access | Identified Spectral Analyzer 31819 | -1/Access | Build established: Hacker-Gunner 32221 | -1/Access | Spotted B-99 Colossus 32265 | -1/Access | Found Gamma Bomb Array 32331 | -1/Access | Found Prototype Launcher 32763 | -1/Access | Identified exit to Command 32767 | -1/Access | Build established: Hacker-Mutant 33754 | -1/Access | Spotted B-99 Colossus 33759 | -1/Access | Spotted B-99 Colossus 33762 | -1/Access | Assimilated B-99 Colossus with FLK Orb 33765 | -1/Access | Assimilated B-99 Colossus with FLK Orb 33840 | -1/Access | Entered Command 33840 | -1/Command | Accompanied by 2 allies 34055 | -1/Command | Build established: Hacker-Golem 34205 | -1/Command | Spotted B-99 Colossus 34226 | -1/Command | Spotted Alpha 7 34266 | -1/Command | System corruption reached 10% 34275 | -1/Command | Identified Point Singularity Launcher 34322 | -1/Command | Assimilated *Big bubkis with FLK Orb 34333 | -1/Command | Core integrity fell below 50% 34355 | -1/Command | Released all parts (8) 34368 | -1/Command | Lost 25 parts (2p4n12u7w) 34385 | -1/Command | Spotted M Guard 34385 | -1/Command | Spotted M Guard 34385 | -1/Command | Spotted Combat Programmer 34386 | -1/Command | Core integrity fell below 20% 34386 | -1/Command | Spotted Combat Programmer 34390 | -1/Command | Destroyed by Combat Programmer with EMDS Last Messages --------------- 34355_ Released Rnf. Quantum Reactor. 34355_ Released Asb. Alloy Leg. 34355_ Released Asb. Biocell Array. 34355_ Released Spectral Analyzer. 34355_ Released Imp. Hacking Suite. 34355_ Released Huge Storage Unit. 34355_ Penetrated by Slug. 34357_ Wall collapses. 34357_ Slug penetrates Wall. 34357_ Penetrated by Slug. 34359_ Acquired 10 matter. 34360_ K-01 Serf collects debris. 34361_ CL#T3EWGUUAL2UWA&TEX%IHOBH 34375_ Slug penetrates Wall. 34380_ System corrupted: Heat flow error (+193). 34386_ Penetrated by EMDS Slug. 34389_ The unstable cave ceiling collapses. 34390_ Penetrated by EMDS Slug. [Achievement: 40k Club] [Achievement: Torch] Map ----- +----------------------------------------------------+ | ????????????????????????????????????????????###+## | | ????????????????????????????????????????????#= | | ????????????????????????????????????????????# | | ????????????????????????????????????????????# =[ | | ????????????????????????????????????????????# =] | | ????????????????????????????????????????????# [] | | ????????????????????????????????????????????# | | ????????????????????????????????????????????# | | ????????????????????????????????????????????# | | ????????????????????????????????????????????###### | | ?????????????????????????????????????????????????? | | ?????????????????????????????????????????????????? | | ?????????????????????????????????????????????????? | | ?????????????????????????????????????????????????? | | ?????????????????????????????????????????????????? | | ?????????????????????????????????????????????????? | | ?????????????????????????????????????????????????? | | ?????????????????????????????????????????????????? | | ?????????????????????????????????????????????????? | | ?????????????????????????????????????????????????? | | ?????????????????????????????????????????????????? | | ????????????????????????#####?###########?#####??? | | ??????????????????????### #?# #?# #??? | | ?????????????????#+++## W ### W # W ### #### | | ?????????????????# / | | ?????????????????# Y @ / | | ?????????????????# / | | ?????????????????# Y p / | | ?????????????????# p / | | ?????????????????# # ### W W ### #### | | ?????????????????###### #?# #?# #??? | | ??????????????????????# ###?###########?#####??? | | ??????????????????????### ??????????????????????? | | ????????????????????????# ??????????????????????? | | ????????????????????????# ??????????????????????? | | ????????????????????????# ??????????????????????? | | ????????????????????????# ??????????????????????? | | ????????????????????????# ??????????????????????? | | ????????????????????????# ??????????????????????? | | ????????????????????????? ??????????????????????? | | ????????????????????????? ??????????????????????? | | ?????????????????????????????????????????????????? | | ?????????????????????????????????????????????????? | | ?????????????????????????????????????????????????? | | ?????????????????????????????????????????????????? | | ?????????????????????????????????????????????????? | | ?????????????????????????????????????????????????? | | ?????????????????????????????????????????????????? | | ?????????????????????????????????????????????????? | | ?????????????????????????????????????????????????? | +----------------------------------------------------+ Best States ------------- Heat Dissipation 88 Coolant Potential 80 Energy Generation 69 Energy Capacity 1700 Matter Stores 300 Matter Capacity 300 Sight Range 24 Terrain Scan Density 10 Jamming Range 14 Cloak Strength 4 Additional Mass Support 20 Armor Coverage 1200 Resistance: KI 15 Resistance: TH 15 Resistance: EX 50 Resistance: EM 15 Resistance: I 15 Resistance: S 15 Resistance: P 15 Core Shielding 20 Weapon Shielding 100 Phase Shifting 8 Evasion (%) 50 Targeting Accuracy 28 Core Analysis 8 Recoil Reduction 6 Particle Charging 20 Offensive Hacking 36 Authchip Count 1 Item Schematics ----------------- Hrd. Heavy Armor Plating | -8/Materials | Scanalyzed Smartbomb Launcher | -8/Materials | Scanalyzed Imp. Transmission Jammer | -7/Factory | Scanalyzed Imp. Coolant Injector | -7/Factory | Scanalyzed Battle Rifle | -7/Zion | Free Battle Cannon | -7/Zion | Free Flamer | -7/Zion | Free Hvy. Treads | -6/Factory | Scanalyzed Huge Storage Unit | -6/Factory | Hacked Adv. Hacking Suite | -6/Factory | Scanalyzed Hdn. Centrium Leg | -5/Factory | Scanalyzed Robot Schematics ------------------ None Fabricated ------------ Imp. Deuterium Engine | x2 | -7/Factory | Preloaded Huge Storage Unit | x1 | -6/Factory Adv. Hacking Suite | x1 | -6/Factory | Authchip Hdn. Centrium Leg | x1 | -5/Factory | Preloaded Smartbomb Launcher | x1 | -2/Research Alien Tech Used ----------------- None Achievements -------------- 40k Club Beloved No Signal Torch Ultimate Loadout Use The Force Challenges ------------ None Game ------ Seed ImprovedWeldingProjector Manual? 0 Play Time 04:19:27 Cumulative 93.8 hours Start 2024.01.03 @ 19:57:09 End 2024.01.07 @ 16:06:13 Sessions 15 Manual Loads 0 Difficulty Rogue Special Mode None Game No. 111 Rogue 111 Adventurer 0 Explorer 0 Win Type - Total 1 Types 1/0/0/0/0/0/0/0/0 Lore% 46 Gallery% 54 Achievement% 46 Wizard Run 0 Options --------- ASCII 0 Keyboard 1 Movement Numpad Keybinds 0 Fullscreen 2 Font 18/SmallcapsGlow Map View 76x50 Tactical HUD 1 Map Filters NONE Filters NONE Steam 1 RUN: 9d7a083e-89f6-432d-b2bc-b3038c62c4e3